fUST/lending_fUST_20250614
["ID","MTS","AMOUNT","RATE_DAILY","PERIOD"]
[365702323,1749835631399,-500.0,0.0002219,2]
[365702324,1749835631420,-160.0,0.0002219,2]
[365702325,1749835631440,-460.0,0.00022191,4]
[365702326,1749835631461,-460.0,0.00022191,4]
[365702327,1749835631481,-460.0,0.00022191,2]
[365702328,1749835631504,-629.59,0.00022191,4]
[365702329,1749835631527,-729.7,0.00022191,4]
[365702330,1749835631552,-460.0,0.00022191,4]
[365702331,1749835631575,-460.0,0.00022191,4]
[365702332,1749835631600,-982.96,0.00022191,4]
[365702333,1749835631622,-460.0,0.00022191,4]
[365702334,1749835631647,-460.0,0.00022191,4]
[365702335,1749835631669,-460.0,0.00022191,4]
[365702336,1749835631691,-460.0,0.00022191,4]
[365702337,1749835631716,-534.4,0.00022191,4]
[365702338,1749835631739,-916.08,0.00022191,4]
[365702339,1749835631764,-1298.86,0.00022191,4]
[365702340,1749835631787,-460.0,0.00022191,4]
[365702341,1749835631814,-208.75,0.00022191,4]
[365702342,1749835631838,-465.89,0.00022191,4]
[365702343,1749835631862,-460.0,0.00022191,4]
[365702344,1749835631885,-460.0,0.00022191,4]
[365702345,1749835631909,-2449.58,0.00022191,4]
[365702346,1749835631932,-472.83,0.00022191,4]
[365702347,1749835631956,-957.7,0.00022191,4]
[365702348,1749835631981,-1045.34,0.00022191,4]
[365702349,1749835632004,-460.0,0.00022191,4]
[365702350,1749835632029,-460.0,0.00022191,4]
[365702351,1749835632055,-1218.09,0.00022191,4]
[365702352,1749835632078,-460.0,0.00022191,4]
[365702353,1749835632101,-460.0,0.00022191,4]
[365702354,1749835632125,-1102.65,0.00022191,4]
[365702355,1749835632149,-1572.95,0.00022191,4]
[365702356,1749835632170,-161.95301122,0.000222,69]
[365702357,1749835632199,-207.95099095,0.000222,6]
[365702358,1749835632227,-207.95099095,0.0002235,7]
[365702359,1749835632248,-341.5733058,0.00022351,2]
[365702360,1749835632269,-5069.01513029,0.00022352,2]
[365702361,1749835632290,-275.95,0.00022455,3]
[365702362,1749835632314,-500.0,0.00022464,2]
[365702363,1749835632334,-543.03502738,0.00022464,2]
[365702364,1749835632356,-169.28459699,0.00022464,2]
[365702365,1749835632376,-460.0,0.00022465,4]
[365702366,1749835632397,-460.0,0.00022465,4]
[365702367,1749835632418,-460.0,0.00022465,2]
[365702368,1749835632440,-629.59,0.00022465,4]
[365702369,1749835632463,-729.7,0.00022465,4]
[365702370,1749835632483,-549.94,0.00022465,4]
[365702371,1749835632505,-460.0,0.00022465,4]
[365702372,1749835632527,-982.96,0.00022465,4]
[365702373,1749835632550,-460.0,0.00022465,4]
[365702374,1749835632571,-460.0,0.00022465,4]
[365702375,1749835632591,-460.0,0.00022465,4]
[365702376,1749835632612,-460.0,0.00022465,4]
[365702377,1749835632634,-534.4,0.00022465,4]
[365702378,1749835632655,-916.08,0.00022465,4]
[365702379,1749835632677,-1298.86,0.00022465,4]
[365702380,1749835632698,-460.0,0.00022465,4]
[365702381,1749835632719,-465.89,0.00022465,4]
[365702382,1749835632741,-460.0,0.00022465,4]
[365702383,1749835632763,-460.0,0.00022465,4]
[365702384,1749835632787,-2449.58,0.00022465,4]
[365702385,1749835632810,-957.7,0.00022465,4]
[365702386,1749835632833,-1045.34,0.00022465,4]
[365702387,1749835632854,-460.0,0.00022465,4]
[365702388,1749835632876,-460.0,0.00022465,4]
[365702389,1749835632900,-1218.09,0.00022465,4]
[365702390,1749835632924,-460.0,0.00022465,4]
[365702391,1749835633048,-460.0,0.00022465,4]
[365702392,1749835633074,-1102.65,0.00022465,4]
[365702393,1749835633098,-1572.95,0.00022465,4]
[365702394,1749835633127,-207.95099095,0.000225,7]
[365702395,1749835633150,-537.978401,0.00022508,2]
[365702396,1749835633171,-5709.19021287,0.0002251,2]
[365702397,1749835633191,-64401.28788281,0.0002254,2]
[365702399,1749835633520,-460.0,0.00021095,4]
[365702400,1749835633541,-460.0,0.00021369,4]
[365702401,1749835633562,-554.03512344,0.00021525,2]
[365702402,1749835633582,-554.03512344,0.0002153,2]
[365702403,1749835633603,-554.03512344,0.00021534,2]
[365702404,1749835633622,-554.03512344,0.00021539,2]
[365702405,1749835633642,-554.03512344,0.00021543,2]
[365702406,1749835633664,-460.0,0.00021643,4]
[365702407,1749835633684,-521.32,0.00021917,4]
[365702408,1749835633705,-635.61,0.00022181,10]
[365702409,1749835633726,-8460.89106509,0.0002254,2]
[365702410,1749835633746,-250.0,0.00022583,2]
[365702411,1749835633768,-1000.0,0.00022609,2]
[365702412,1749835633797,-207.95099095,0.0002265,7]
[365702413,1749835633819,-460.0,0.00022739,4]
[365702414,1749835633840,-460.0,0.00022739,4]
[365702415,1749835633861,-460.0,0.00022739,2]
[365702416,1749835633883,-629.59,0.00022739,4]
[365702417,1749835633906,-729.7,0.00022739,4]
[365702418,1749835633928,-460.0,0.00022739,4]
[365702419,1749835633951,-982.96,0.00022739,4]
[365702420,1749835633973,-460.0,0.00022739,4]
[365702421,1749835633998,-460.0,0.00022739,4]
[365702422,1749835634021,-460.0,0.00022739,4]
[365702423,1749835634045,-460.0,0.00022739,4]
[365702424,1749835634075,-534.4,0.00022739,4]
[365702425,1749835634098,-916.08,0.00022739,4]
[365702426,1749835634124,-1298.86,0.00022739,4]
[365702427,1749835634147,-460.0,0.00022739,4]
[365702428,1749835634170,-465.89,0.00022739,4]
[365702429,1749835634193,-460.0,0.00022739,4]
[365702430,1749835634215,-460.0,0.00022739,4]
[365702431,1749835634240,-2449.58,0.00022739,4]
[365702432,1749835634264,-957.7,0.00022739,4]
[365702433,1749835634288,-1045.34,0.00022739,4]
[365702434,1749835634313,-460.0,0.00022739,4]
[365702435,1749835634335,-460.0,0.00022739,4]
[365702436,1749835634357,-1218.09,0.00022739,4]
[365702437,1749835634381,-460.0,0.00022739,4]
[365702438,1749835634405,-460.0,0.00022739,4]
[365702439,1749835634428,-1102.65,0.00022739,4]
[365702440,1749835634451,-1572.95,0.00022739,4]
[365702441,1749835634479,-207.95099095,0.000228,8]
[365702442,1749835634501,-424.32678023,0.00022881,2]
[365702443,1749835634523,-213.24139183,0.00022881,2]
[365702444,1749835634546,-835.28007164,0.00022882,2]
[365702445,1749835634570,-160.0,0.00022886,4]
[365702446,1749835634592,-3004.0,0.00022896,2]
[365702447,1749835634615,-6000.0,0.00022929,3]
[365702448,1749835634636,-420.0,0.00022943,2]
[365702449,1749835634658,-420.0,0.00022943,2]
[365702450,1749835634687,-207.95099095,0.0002295,8]
[365702451,1749835634709,-8000.0,0.00022986,3]
[365702452,1749835634731,-160.0,0.00022986,3]
[365702453,1749835634752,-500.0,0.00023,2]
[365702454,1749835634776,-835.28007164,0.00023,3]
[365702455,1749835634798,-229.78555783,0.00023,3]
[365702456,1749835634824,-424.32678023,0.00023,3]
[365702457,1749835634845,-160.0,0.00023,3]
[365702458,1749835634867,-460.0,0.00023013,4]
[365702459,1749835634888,-460.0,0.00023013,4]
[365702460,1749835634910,-460.0,0.00023013,2]
[365702461,1749835634934,-629.59,0.00023013,4]
[365702462,1749835634956,-729.7,0.00023013,4]
[365702463,1749835634979,-460.0,0.00023013,4]
[365702464,1749835635006,-982.96,0.00023013,4]
[365702465,1749835635029,-460.0,0.00023013,4]
[365702466,1749835635054,-460.0,0.00023013,4]
[365702467,1749835635080,-460.0,0.00023013,4]
[365702468,1749835635102,-460.0,0.00023013,4]
[365702469,1749835635125,-534.4,0.00023013,4]
[365702470,1749835635148,-916.08,0.00023013,4]
[365702471,1749835635173,-1298.86,0.00023013,4]
[365702472,1749835635198,-460.0,0.00023013,4]
[365702473,1749835635219,-465.89,0.00023013,4]
[365702474,1749835635242,-460.0,0.00023013,4]
[365702475,1749835635264,-460.0,0.00023013,4]
[365702476,1749835635288,-2449.58,0.00023013,4]
[365702477,1749835635314,-957.7,0.00023013,4]
[365702478,1749835635338,-1045.34,0.00023013,4]
[365702479,1749835635359,-460.0,0.00023013,4]
[365702480,1749835635384,-373.68,0.00023013,4]
[365702481,1749835635407,-1218.09,0.00023013,4]
[365702482,1749835635430,-460.0,0.00023013,4]
[365702483,1749835635452,-460.0,0.00023013,4]
[365702484,1749835635475,-1102.65,0.00023013,4]
[365702485,1749835635496,-1572.95,0.00023013,4]
[365702486,1749835635516,-2000.0,0.00023024,3]
[365702487,1749835635536,-215.0738,0.00023027,2]
[365702488,1749835635640,-207.95099095,0.000231,8]
[365702489,1749835635679,-500.0,0.00023156,2]
[365702490,1749835635699,-1451.32321575,0.00023157,2]
[365702491,1749835635726,-207.95099095,0.0002325,8]
[365702492,1749835635747,-460.0,0.00023287,4]
[365702493,1749835635768,-460.0,0.00023287,4]
[365702494,1749835635790,-460.0,0.00023287,2]
[365702495,1749835635815,-629.59,0.00023287,4]
[365702496,1749835635838,-729.7,0.00023287,4]
[365702497,1749835635859,-460.0,0.00023287,4]
[365702498,1749835635882,-982.96,0.00023287,4]
[365702499,1749835635904,-460.0,0.00023287,4]
[365702500,1749835635927,-460.0,0.00023287,4]
[365702501,1749835635948,-460.0,0.00023287,4]
[365702502,1749835635969,-460.0,0.00023287,4]
[365702503,1749835635994,-534.4,0.00023287,4]
[365702504,1749835636016,-916.08,0.00023287,4]
[365702505,1749835636040,-1298.86,0.00023287,4]
[365702506,1749835636063,-288.3,0.00023287,4]
[365702507,1749835636085,-465.89,0.00023287,4]
[365702508,1749835636107,-460.0,0.00023287,4]
[365702509,1749835636129,-460.0,0.00023287,4]
[365702510,1749835636152,-2449.58,0.00023287,4]
[365702511,1749835636175,-957.7,0.00023287,4]
[365702512,1749835636197,-1045.34,0.00023287,4]
[365702513,1749835636218,-429.37832938,0.00023287,4]
[365702514,1749835636242,-1218.09,0.00023287,4]
[365702515,1749835636265,-460.0,0.00023287,4]
[365702516,1749835636288,-460.0,0.00023287,4]
[365702517,1749835636313,-1102.65,0.00023287,4]
[365702518,1749835636335,-1572.95,0.00023287,4]
[365702519,1749835636357,-153.0,0.00023315,2]
[365702520,1749835636379,-158.8399287,0.00023315,2]
[365702521,1749835636399,-353.9079098,0.00023315,2]
[365702522,1749835636419,-573.6747916,0.00023315,2]
[365702523,1749835636439,-158.8399287,0.00023342,2]
[365702524,1749835636458,-153.0,0.00023342,2]
[365702525,1749835636479,-573.6747916,0.00023342,2]
[365702526,1749835636500,-573.6747916,0.00023342,2]
[365702527,1749835636521,-158.8399287,0.00023342,2]
[365702528,1749835636551,-207.95099095,0.000234,9]
[365702529,1749835636571,-500.0,0.00023407,2]
[365702530,1749835636591,-632.35509015,0.00023407,2]
[365702531,1749835636612,-1377.89,0.00023459,2]
[365702532,1749835636633,-3696.0,0.00023488,2]
[365702533,1749835636653,-1982.764368,0.0002352,3]
[365702534,1749835636672,-653.0,0.00023529,2]
[365702535,1749835636691,-2160.0,0.00023529,2]
[365702536,1749835636711,-405.0,0.00023529,2]
[365702537,1749835636739,-207.95099095,0.0002355,9]
[365702538,1749835636760,-160.0,0.0002356,2]
[365702539,1749835636781,-460.0,0.00023561,4]
[365702540,1749835636804,-460.0,0.00023561,4]
[365702541,1749835636825,-460.0,0.00023561,2]
[365702542,1749835636849,-629.59,0.00023561,4]
[365702543,1749835636873,-729.7,0.00023561,4]
[365702544,1749835636894,-460.0,0.00023561,4]
[365702545,1749835636917,-982.96,0.00023561,4]
[365702546,1749835636940,-460.0,0.00023561,4]
[365702547,1749835636962,-460.0,0.00023561,4]
[365702548,1749835636986,-460.0,0.00023561,4]
[365702549,1749835637008,-460.0,0.00023561,4]
[365702550,1749835637031,-534.4,0.00023561,4]
[365702551,1749835637056,-916.08,0.00023561,4]
[365702552,1749835637082,-1298.86,0.00023561,4]
[365702553,1749835637104,-465.89,0.00023561,4]
[365702554,1749835637126,-460.0,0.00023561,4]
[365702555,1749835637147,-460.0,0.00023561,4]
[365702556,1749835637170,-2449.58,0.00023561,4]
[365702557,1749835637192,-957.7,0.00023561,4]
[365702558,1749835637215,-1045.34,0.00023561,4]
[365702559,1749835637238,-1218.09,0.00023561,4]
[365702560,1749835637260,-460.0,0.00023561,4]
[365702561,1749835637283,-460.0,0.00023561,4]
[365702562,1749835637307,-1102.65,0.00023561,4]
[365702563,1749835637329,-1572.95,0.00023561,4]
[365702564,1749835637350,-3696.0,0.00023602,2]
[365702565,1749835637370,-5709.19021285,0.00023666,2]
[365702566,1749835637390,-545.0,0.00023685,2]
[365702567,1749835637418,-207.95099095,0.000237,9]
[365702568,1749835637438,-1171.98,0.000238,2]
[365702569,1749835637458,-440406.294866,0.000238,2]
[365702570,1749835637479,-151.0,0.000238,5]
[365702571,1749835637501,-160.0,0.00023818,5]
[365702572,1749835637522,-551.9,0.00023825,3]
[365702573,1749835637543,-460.0,0.00023835,4]
[365702574,1749835637568,-460.0,0.00023835,4]
[365702575,1749835637589,-460.0,0.00023835,2]
[365702576,1749835637613,-629.59,0.00023835,4]
[365702577,1749835637636,-729.7,0.00023835,4]
[365702578,1749835637659,-460.0,0.00023835,4]
[365702579,1749835637682,-982.96,0.00023835,4]
[365702580,1749835637705,-460.0,0.00023835,4]
[365702581,1749835637728,-460.0,0.00023835,4]
[365702582,1749835637751,-460.0,0.00023835,4]
[365702583,1749835637773,-460.0,0.00023835,4]
[365702584,1749835637797,-534.4,0.00023835,4]
[365702585,1749835637826,-916.08,0.00023835,4]
[365702586,1749835637851,-1298.86,0.00023835,4]
[365702587,1749835637875,-465.89,0.00023835,4]
[365702588,1749835637898,-460.0,0.00023835,4]
[365702589,1749835637921,-460.0,0.00023835,4]
[365702590,1749835637944,-2449.58,0.00023835,4]
[365702591,1749835637968,-957.7,0.00023835,4]
[365702592,1749835637996,-1045.34,0.00023835,4]
[365702593,1749835638023,-1218.09,0.00023835,4]
[365702594,1749835638046,-247.60829142,0.00023835,4]
[365702595,1749835638073,-460.0,0.00023835,4]
[365702596,1749835638200,-1102.65,0.00023835,4]
[365702597,1749835638226,-1572.95,0.00023835,4]
[365702598,1749835638257,-207.95099095,0.0002385,10]
[365702599,1749835638282,-3696.0,0.00023858,2]
[365702600,1749835638309,-984.38,0.000239,31]
[365702601,1749835638335,-984.38,0.000239,31]
[365702602,1749835638362,-984.38,0.000239,31]
[365702603,1749835638389,-984.38,0.000239,31]
[365702604,1749835638416,-984.38,0.000239,31]
[365702605,1749835638440,-984.38,0.000239,31]
[365702606,1749835638466,-984.38,0.000239,31]
[365702607,1749835638490,-984.38,0.000239,31]
[365702608,1749835638515,-984.38,0.000239,31]
[365702609,1749835638540,-984.38,0.000239,31]
[365702610,1749835638566,-984.38,0.000239,31]
[365702611,1749835638591,-984.38,0.000239,31]
[365702612,1749835638617,-984.38,0.000239,31]
[365702613,1749835638642,-984.38,0.000239,31]
[365702614,1749835638667,-984.38,0.000239,31]
[365702615,1749835638691,-984.38,0.000239,31]
[365702616,1749835638713,-2200.0,0.00023941,2]
[365702617,1749835638735,-1000.0,0.00023955,2]
[365702618,1749835638757,-500.0,0.00023973,2]
[365702619,1749835638780,-500.0,0.00023973,2]
[365702620,1749835638802,-500.0,0.00023973,2]
[365702621,1749835638825,-500.0,0.00023973,2]
[365702622,1749835638847,-56549.31620431,0.00024,10]
[365702623,1749835638868,-5430.05034855,0.00024,3]
[365702624,1749835638890,-160.0,0.00024,7]
[365702625,1749835638912,-160.0,0.00024,10]
[365702626,1749835638933,-2000.0,0.00024,2]
[365702627,1749835638955,-151505.11380778,0.00024,30]
[365702628,1749835638976,-160.0,0.00024,7]
[365702629,1749835639002,-160.0,0.00024,10]
[365702630,1749835639024,-160.0,0.00024,7]
[365702631,1749835639046,-160.0,0.00024,10]
[365702632,1749835639070,-344832.88342287,0.00024,30]
[365702633,1749835639219,-158.3739495,0.00023342,2]
[365702634,1749835639240,-153.0,0.00023342,2]
[365702635,1749835639264,-80454.0834135,0.00024,30]
[365702636,1749835639536,-460.0,0.00021095,4]
[365702637,1749835639562,-460.0,0.00021095,4]
[365702638,1749835639584,-478.1,0.00021369,4]
[365702639,1749835639606,-460.0,0.00021369,4]
[365702641,1749835639629,-460.0,0.00021643,4]
[365702642,1749835639654,-427.46,0.00021917,4]
[365702643,1749835639675,-827.87,0.00023003,3]
[365702644,1749835639695,-573.6747916,0.00023342,2]
[365702645,1749835639715,-94100.68705367,0.00024,30]
[365702646,1749835639736,-213.24139183,0.00024,10]
[365702647,1749835639756,-2000.0,0.00024,2]
[365702648,1749835639777,-160.0,0.00024,7]
[365702649,1749835639798,-160.0,0.00024,10]
[365702650,1749835639822,-2000.0,0.00024,2]
[365702651,1749835639843,-2000.0,0.00024,2]
[365702652,1749835639867,-151.0,0.00024,2]
[365702653,1749835639888,-500.0,0.00024,2]
[365702654,1749835639908,-2162.83,0.00024,10]
[365702655,1749835639928,-158.36,0.00024,2]
[365702656,1749835639949,-1000.0,0.00024,5]
[365702657,1749835639970,-835.28007164,0.00024,10]
[365702658,1749835639993,-229.78555783,0.00024,10]
[365702659,1749835640013,-12531.02669373,0.00024,10]
[365702660,1749835640035,-424.32678023,0.00024,10]
[365702661,1749835640058,-315.3059208,0.00024,10]
[365702662,1749835640082,-315.3059208,0.00024,30]
[365702663,1749835640110,-207.95099095,0.00024,10]
[365702664,1749835640131,-160.0,0.00024,10]
[365702665,1749835640153,-255.0,0.0002401,2]
[365702666,1749835640175,-5888.0,0.0002401,2]
[365702667,1749835640194,-5000.0,0.00024014,60]
[365702668,1749835640214,-255.0,0.00024015,2]
[365702669,1749835640234,-255.0,0.0002402,2]
[365702670,1749835640255,-255.0,0.00024025,2]
[365702671,1749835640275,-255.0,0.0002403,2]
[365702672,1749835640295,-255.0,0.00024035,2]
[365702673,1749835640318,-394.2064641,0.0002404,2]
[365702674,1749835640338,-237.0,0.00024061,2]
[365702675,1749835640359,-460.0,0.00024109,4]
[365702676,1749835640380,-460.0,0.00024109,4]
[365702677,1749835640400,-460.0,0.00024109,2]
[365702678,1749835640515,-729.7,0.00024109,4]
[365702679,1749835640540,-982.96,0.00024109,4]
[365702680,1749835640563,-460.0,0.00024109,4]
[365702681,1749835640585,-428.0,0.00024109,4]
[365702682,1749835640605,-460.0,0.00024109,4]
[365702683,1749835640626,-460.0,0.00024109,4]
[365702684,1749835640649,-534.4,0.00024109,4]
[365702685,1749835640672,-916.08,0.00024109,4]
[365702686,1749835640695,-1298.86,0.00024109,4]
[365702687,1749835640717,-465.89,0.00024109,4]
[365702688,1749835640739,-460.0,0.00024109,4]
[365702689,1749835640760,-460.0,0.00024109,4]
[365702690,1749835640783,-2449.58,0.00024109,4]
[365702691,1749835640810,-957.7,0.00024109,4]
[365702692,1749835640833,-1045.34,0.00024109,4]
[365702693,1749835640855,-1218.09,0.00024109,4]
[365702694,1749835640879,-460.0,0.00024109,4]
[365702695,1749835640905,-1102.65,0.00024109,4]
[365702696,1749835640930,-1572.95,0.00024109,4]
[365702697,1749835640952,-491.4452529,0.00024137,2]
[365702698,1749835640974,-1147.3495832,0.00024137,2]
[365702699,1749835640998,-317.0030452,0.00024137,2]
[365702700,1749835641019,-306.0,0.00024137,2]
[365702701,1749835641049,-207.95099095,0.0002415,10]
[365702702,1749835641077,-573.6747916,0.00024164,2]
[365702703,1749835641097,-573.6747916,0.00024164,2]
[365702704,1749835641117,-573.6747916,0.00024164,2]
[365702705,1749835641138,-573.6747916,0.00024164,2]
[365702706,1749835641159,-355.2231881,0.00024164,2]
[365702707,1749835641179,-151.0,0.00024195,7]
[365702708,1749835641203,-200.0,0.000242,10]
[365702709,1749835641225,-78685.84095,0.000243,30]
[365702710,1749835641258,-207.95099095,0.000243,10]
[365702711,1749835641280,-49933.03861601,0.00024321,3]
[365702712,1749835641303,-815.86327133,0.00024321,3]
[365702713,1749835641332,-380.48085952,0.00024383,4]
[365702714,1749835641354,-460.0,0.00024383,4]
[365702715,1749835641375,-460.0,0.00024383,2]
[365702716,1749835641398,-729.7,0.00024383,4]
[365702717,1749835641421,-982.96,0.00024383,4]
[365702718,1749835641444,-460.0,0.00024383,4]
[365702719,1749835641467,-460.0,0.00024383,4]
[365702720,1749835641488,-460.0,0.00024383,4]
[365702721,1749835641511,-534.4,0.00024383,4]
[365702722,1749835641533,-916.08,0.00024383,4]
[365702723,1749835641559,-1298.86,0.00024383,4]
[365702724,1749835641581,-465.89,0.00024383,4]
[365702725,1749835641602,-460.0,0.00024383,4]
[365702726,1749835641624,-460.0,0.00024383,4]
[365702727,1749835641647,-2449.58,0.00024383,4]
[365702728,1749835641670,-957.7,0.00024383,4]
[365702729,1749835641693,-1045.34,0.00024383,4]
[365702730,1749835641717,-1218.09,0.00024383,4]
[365702731,1749835641741,-460.0,0.00024383,4]
[365702732,1749835641765,-1102.65,0.00024383,4]
[365702733,1749835641788,-1572.95,0.00024383,4]
[365702734,1749835641813,-223.0315306,0.00024396,2]
[365702735,1749835641837,-800.0,0.00024397,2]
[365702736,1749835641857,-151.0,0.00024397,7]
[365702737,1749835641879,-835.28007164,0.000244,3]
[365702738,1749835641900,-229.78555783,0.000244,3]
[365702739,1749835641921,-424.32678023,0.000244,3]
[365702740,1749835641941,-160.0,0.000244,3]
[365702741,1749835641971,-207.95099095,0.0002445,11]
[365702742,1749835641993,-293.0,0.000245,30]
[365702743,1749835642013,-5000.0,0.000245,31]
[365702744,1749835642035,-208.0,0.000245,2]
[365702745,1749835642059,-1500.0,0.00024503,2]
[365702746,1749835642079,-501.94457672,0.00024521,2]
[365702747,1749835642099,-202.97768371,0.00024521,2]
[365702748,1749835642119,-1000.0,0.00024521,2]
[365702749,1749835642139,-131.81325422,0.00024521,2]
[365702750,1749835642549,-529.68,0.0002399,10]
[365702751,1749835642572,-151.0,0.00024035,2]
[365702752,1749835642592,-868.18674578,0.00024521,2]
[365702753,1749835642612,-4821.69623785,0.00024558,2]
[365702754,1749835642631,-4821.69623784,0.00024587,2]
[365702755,1749835642651,-151.0,0.00024598,7]
[365702756,1749835642676,-984.38,0.000246,31]
[365702757,1749835642700,-984.38,0.000246,31]
[365702758,1749835642724,-984.38,0.000246,31]
[365702759,1749835642749,-984.38,0.000246,31]
[365702760,1749835642774,-984.38,0.000246,31]
[365702761,1749835642799,-984.38,0.000246,31]
[365702762,1749835642825,-984.38,0.000246,31]
[365702763,1749835642849,-984.38,0.000246,31]
[365702764,1749835642873,-984.38,0.000246,31]
[365702765,1749835642897,-984.38,0.000246,31]
[365702766,1749835642922,-984.38,0.000246,31]
[365702767,1749835642948,-984.38,0.000246,31]
[365702768,1749835642972,-984.38,0.000246,31]
[365702769,1749835643088,-984.38,0.000246,31]
[365702770,1749835643113,-984.38,0.000246,31]
[365702771,1749835643138,-984.38,0.000246,31]
[365702772,1749835643164,-984.38,0.000246,31]
[365702773,1749835643188,-984.38,0.000246,31]
[365702774,1749835643211,-984.38,0.000246,31]
[365702775,1749835643234,-984.38,0.000246,31]
[365702776,1749835643258,-984.38,0.000246,31]
[365702777,1749835643282,-984.38,0.000246,31]
[365702778,1749835643306,-984.38,0.000246,31]
[365702779,1749835643329,-984.38,0.000246,31]
[365702780,1749835643360,-207.95099095,0.000246,11]
[365702781,1749835643382,-237.0,0.00024602,2]
[365702782,1749835643404,-237.0,0.0002461,2]
[365702783,1749835643425,-4821.69623784,0.00024617,2]
[365702784,1749835643446,-1537.0,0.00024626,2]
[365702785,1749835643467,-4821.69623784,0.00024646,2]
[365702786,1749835643489,-409.46497299,0.0002465,2]
[365702787,1749835643510,-28936.89414274,0.0002465,30]
[365702788,1749835643531,-42406.97392633,0.0002465,30]
[365702789,1749835643552,-5000.0,0.00024655,2]
[365702790,1749835643574,-5000.0,0.00024655,2]
[365702791,1749835643594,-529.15722884,0.00024655,2]
[365702792,1749835651100,-440.0,0.00021095,4]
[365702793,1749835651121,-440.0,0.00021095,4]
[365702794,1749835651143,-460.0,0.00021095,4]
[365702795,1749835651165,-460.0,0.00021369,4]
[365702796,1749835651184,-289.34705371,0.00021624,4]
[365702797,1749835651206,-460.0,0.00021643,4]
[365702798,1749835651228,-460.0,0.00021917,4]
[365702799,1749835651250,-460.0,0.00022191,4]
[365702800,1749835651271,-460.0,0.00022465,4]
[365702801,1749835651293,-460.0,0.00022739,4]
[365702802,1749835651314,-460.0,0.00023013,4]
[365702803,1749835651336,-460.0,0.00023287,4]
[365702804,1749835651356,-460.0,0.00023561,4]
[365702805,1749835651378,-460.0,0.00023835,4]
[365702806,1749835651399,-460.0,0.00024109,4]
[365702807,1749835651420,-460.0,0.00024383,4]
[365702808,1749835651439,-151.0,0.00024587,2]
[365702809,1749835651458,-2200.0,0.00024655,2]
[365702810,1749835651477,-4470.84277116,0.00024655,2]
[365702811,1749835651497,-5000.0,0.00024655,2]
[365702812,1749835651525,-5000.0,0.00024655,2]
[365702813,1749835651548,-200.0,0.00024657,4]
[365702814,1749835651569,-208.81086394,0.00024657,4]
[365702815,1749835651590,-234.14138066,0.00024657,4]
[365702816,1749835651610,-2000.0,0.00024657,30]
[365702817,1749835651631,-1390.21429571,0.00024657,30]
[365702818,1749835651653,-460.0,0.00024657,2]
[365702819,1749835651676,-982.96,0.00024657,4]
[365702820,1749835651700,-460.0,0.00024657,4]
[365702821,1749835651722,-460.0,0.00024657,4]
[365702822,1749835651746,-460.0,0.00024657,4]
[365702823,1749835651770,-534.4,0.00024657,4]
[365702824,1749835651794,-916.08,0.00024657,4]